bitfinex-derivatives/quotes_BTCF0:USTF0_20240814
["timestamp","ask_amount","ask_price","bid_price","bid_amount"]
[1723595108806,0.0002477,60611.0,60610.0,0.070972]
[1723595109098,0.0012477,60611.0,60610.0,0.075972]
[1723595109698,0.0012477,60611.0,60610.0,0.070972]
[1723595109895,0.0012477,60611.0,60610.0,0.077972]
[1723595109896,0.0022477,60611.0,60610.0,0.077972]
[1723595110497,0.0012477,60611.0,60610.0,0.070972]
[1723595110698,0.0012477,60611.0,60610.0,0.075972]
[1723595111499,0.0022477,60611.0,60610.0,0.079972]
[1723595111700,0.0022477,60611.0,60610.0,0.078972]
[1723595111900,0.0022477,60611.0,60610.0,0.013]
[1723595112197,0.0012477,60611.0,60610.0,0.009]
[1723595112393,0.0022477,60611.0,60610.0,0.013]
[1723595112806,0.0012477,60611.0,60610.0,0.009]
[1723595113006,0.0012477,60611.0,60610.0,0.013]
[1723595113007,0.0682187,60611.0,60610.0,0.013]
[1723595113600,0.065979,60604.0,60600.0,0.10018746]
[1723595114305,0.06598,60603.0,60600.0,0.10018746]
[1723595115101,0.06598,60603.0,60601.0,0.004]
[1723595115303,0.06598,60603.0,60601.0,0.008]
[1723595115702,0.06698,60603.0,60601.0,0.008]
[1723595116099,0.06698,60603.0,60601.0,0.004]
[1723595116309,0.06698,60603.0,60601.0,0.008]
[1723595117203,0.06698,60603.0,60601.0,0.004]
[1723595117711,0.06698,60603.0,60600.0,0.10418746]
[1723595117712,0.065981,60602.0,60600.0,0.10418746]
[1723595118012,0.065981,60602.0,60585.0,0.3608]
[1723595118013,0.065981,60602.0,60586.0,0.0491]
[1723595118014,0.06599,60593.0,60586.0,0.0491]
[1723595118197,0.646,60601.0,60586.0,0.0491]
[1723595118198,0.3608,60601.0,60586.0,0.0491]
[1723595118397,0.426783,60601.0,60595.0,0.065988]
[1723595118797,0.065983,60600.0,60595.0,0.065988]
[1723595118996,0.065986,60597.0,60590.0,0.065993]
[1723595119405,0.065986,60597.0,60591.0,0.0002475]
[1723595120211,0.065984,60599.0,60591.0,0.0002475]
[1723595120603,0.065984,60599.0,60593.0,0.06599]
[1723595121704,0.066984,60599.0,60593.0,0.06599]
[1723595122106,0.067984,60599.0,60592.0,0.3668]
[1723595122611,0.067984,60599.0,60595.0,0.065988]
[1723595122810,0.002,60599.0,60592.0,0.3668]
[1723595123109,0.001,60599.0,60593.0,0.0455]
[1723595123311,0.001,60599.0,60598.0,0.065985]
[1723595124103,0.002,60599.0,60598.0,0.065985]
[1723595124707,0.002,60599.0,60598.0,0.225985]
[1723595124708,0.001,60599.0,60598.0,0.225985]
[1723595124909,0.0002475,60604.0,60603.0,0.065979]
[1723595125607,0.0002475,60604.0,60603.0,0.111279]
[1723595126203,0.3608,60614.0,60613.0,0.065969]
[1723595126412,0.09869113,60628.0,60612.0,0.00835592]
[1723595126413,0.065959,60622.0,60612.0,0.00835592]
[1723595126617,0.065959,60622.0,60617.0,0.065964]
[1723595126913,0.065959,60622.0,60613.0,0.112668]
[1723595126914,0.065965,60617.0,60613.0,0.112668]
[1723595127107,0.065959,60622.0,60613.0,0.0467]
[1723595127416,0.0002475,60621.0,60618.0,0.2852]
[1723595127712,0.0002475,60621.0,60620.0,0.065961]
[1723595128106,0.3608,60635.0,60620.0,0.95586746]
[1723595128298,0.3608,60635.0,60632.0,0.065947]
[1723595128899,0.3608,60635.0,60628.0,0.065952]
[1723595129104,0.426745,60635.0,60628.0,0.065952]
[1723595129513,0.426745,60635.0,60626.0,0.2852]
[1723595129813,0.3608,60635.0,60634.0,0.065946]
[1723595130008,0.0661885,60638.0,60634.0,0.065946]
[1723595130514,0.028,60635.0,60634.0,0.065946]
[1723595131002,0.014,60635.0,60634.0,0.065946]
[1723595131806,0.028,60635.0,60634.0,0.065946]
[1723595132507,0.014,60635.0,60634.0,0.066946]
[1723595133305,0.028,60635.0,60634.0,0.066946]
[1723595137612,0.028,60635.0,60634.0,0.721706]
[1723595137907,0.028,60635.0,60634.0,0.769606]
[1723595138416,0.028,60635.0,60634.0,0.274846]
[1723595138607,0.028,60635.0,60634.0,0.114846]
[1723595142009,0.028,60635.0,60634.0,0.274846]
[1723595144914,0.028,60635.0,60634.0,0.226946]
[1723595145115,0.093945,60635.0,60634.0,0.001]
[1723595145317,0.028,60635.0,60634.0,0.001]
[1723595147121,0.093945,60635.0,60634.0,0.001]
[1723595150115,0.454745,60635.0,60634.0,0.001]
[1723595151619,0.3888,60635.0,60634.0,0.001]
[1723595152316,0.028,60635.0,60634.0,0.236946]
[1723595152516,0.028,60635.0,60634.0,0.731706]
[1723595152818,0.0002475,60638.0,60637.0,0.065942]
[1723595153019,0.0002475,60638.0,60637.0,0.491142]
[1723595153617,0.0002475,60638.0,60637.0,0.49941496]
[1723595154523,0.0122475,60638.0,60637.0,0.49941496]
[1723595155019,0.0122475,60638.0,60637.0,0.50041496]
[1723595155020,0.0162475,60638.0,60637.0,0.50041496]
[1723595156312,0.0162475,60638.0,60637.0,0.54917479]
[1723595156715,0.0162475,60638.0,60637.0,0.50041496]
[1723595159823,0.0162475,60638.0,60637.0,0.54581496]
[1723595161626,0.0162475,60638.0,60637.0,0.90661496]
[1723595163729,0.0099469,60645.0,60644.0,0.065935]
[1723595164028,0.06539825,60646.0,60645.0,0.065934]
[1723595164228,0.07554429,60646.0,60640.0,0.0490426]
[1723595164530,0.07554429,60646.0,60641.0,0.065937]
[1723595164727,0.06539825,60645.0,60642.0,0.065937]
[1723595165035,0.06939825,60645.0,60644.0,0.001]
[1723595165217,0.004,60645.0,60644.0,0.001]
[1723595166021,0.06939825,60645.0,60644.0,0.001]
[1723595166321,0.004,60645.0,60644.0,0.0752153]
[1723595166516,0.07654429,60646.0,60645.0,0.065934]
[1723595166826,0.06539825,60649.0,60645.0,0.596734]
[1723595167029,0.00016352,60650.0,60649.0,0.065929]
[1723595167328,0.00016352,60650.0,60649.0,0.327329]
[1723595169328,0.00016352,60650.0,60647.0,0.363]
[1723595169531,0.06593,60648.0,60647.0,0.3608]
[1723595169833,0.06593,60648.0,60646.0,0.10018746]
[1723595170630,0.06593,60648.0,60647.0,0.001]
[1723595171133,0.06693,60648.0,60647.0,0.001]
[1723595171425,0.06693,60648.0,60646.0,0.10118746]
[1723595172024,0.07711263,60648.0,60646.0,0.10118746]
[1723595172432,0.07711263,60648.0,60646.0,0.001]
[1723595172636,0.07611263,60648.0,60646.0,0.001]
[1723595172823,0.07811263,60648.0,60646.0,0.001]
[1723595173029,0.07811263,60648.0,60647.0,0.001]
[1723595173431,0.07711263,60648.0,60647.0,0.001]
[1723595173626,0.14285053,60648.0,60647.0,0.001]
[1723595173934,0.065932,60647.0,60646.0,0.001]
[1723595174228,0.01118263,60648.0,60647.0,0.065932]
[1723595174428,0.001,60648.0,60647.0,0.065932]
[1723595174838,0.001,60648.0,60647.0,0.066932]
[1723595175227,0.001,60648.0,60647.0,0.512132]
[1723595176136,0.36096352,60650.0,60649.0,0.065929]
[1723595176333,0.36096352,60650.0,60649.0,0.205929]
[1723595177126,0.00216352,60650.0,60649.0,0.205929]
[1723595177329,0.00216352,60650.0,60649.0,0.206929]
[1723595183337,0.00216352,60650.0,60649.0,0.2559716]
[1723595185342,0.00216352,60650.0,60649.0,0.0500333]
[1723595185343,0.06809152,60650.0,60649.0,0.0500333]
[1723595185648,0.06809152,60650.0,60649.0,0.001]
[1723595187739,0.06809152,60650.0,60649.0,0.066929]
[1723595188540,0.06809152,60650.0,60649.0,0.001]
[1723595191645,0.14983933,60650.0,60649.0,0.001]
[1723595192045,0.06809152,60650.0,60649.0,0.001]
[1723595192747,0.09481062,60650.0,60649.0,0.001]
[1723595194043,0.00216352,60650.0,60649.0,0.001]
[1723595194247,0.06583568,60650.0,60649.0,0.618529]
[1723595194446,0.06583568,60653.0,60652.0,0.065926]
[1723595194646,0.3608,60660.0,60654.0,0.065924]
[1723595194647,0.06583568,60655.0,60654.0,0.065924]
[1723595194855,0.06583568,60655.0,60651.0,0.3608]
[1723595194856,0.06583568,60656.0,60655.0,0.065923]
[1723595196148,0.08230074,60658.0,60655.0,0.065923]
[1723595196458,0.08230074,60657.0,60655.0,0.066923]
[1723595196648,0.06592,60658.0,60655.0,0.067923]
[1723595196649,0.001,60656.0,60655.0,0.067923]
[1723595196956,0.066922,60656.0,60655.0,0.002]
[1723595197264,0.065922,60656.0,60655.0,0.002]
[1723595197960,0.14822455,60656.0,60655.0,0.002]
[1723595199056,0.0926385,60656.0,60655.0,0.002]
[1723595199557,0.0936385,60656.0,60655.0,0.002]
[1723595200146,0.9882385,60656.0,60655.0,0.002]
[1723595200349,0.065928,60650.0,60649.0,0.00024729]
[1723595200549,0.426728,60650.0,60649.0,0.00024729]
[1723595200754,0.50904158,60650.0,60649.0,0.00024729]
[1723595201253,0.065933,60646.0,60645.0,0.3249]
[1723595201658,0.065936,60643.0,60640.0,0.3608]
[1723595201952,0.065936,60643.0,60639.0,0.06594]
[1723595201953,0.14825619,60643.0,60639.0,0.06594]
[1723595202158,0.06585791,60640.0,60636.0,0.0490333]
[1723595202366,0.06585791,60641.0,60640.0,0.065939]
[1723595203551,0.06585791,60642.0,60640.0,0.065939]
[1723595204251,0.06585791,60642.0,60640.0,0.071939]
[1723595204758,0.06585791,60642.0,60640.0,0.065939]
[1723595204956,0.06585791,60642.0,60640.0,0.071939]
[1723595205464,0.001,60641.0,60640.0,0.071939]
[1723595206057,0.06685791,60642.0,60640.0,0.071939]
[1723595206262,0.001,60642.0,60640.0,0.071939]
[1723595206560,0.06685791,60642.0,60640.0,0.071939]
[1723595206746,0.07585832,60642.0,60640.0,0.071939]
[1723595206951,0.001,60641.0,60640.0,0.071939]
[1723595207459,0.001,60641.0,60640.0,0.065939]
[1723595207667,0.001,60641.0,60640.0,0.071939]
[1723595208052,0.001,60641.0,60640.0,0.065939]
[1723595208367,0.066938,60641.0,60640.0,0.006]
[1723595208655,0.14925819,60641.0,60640.0,0.006]
[1723595208860,0.065939,60640.0,60632.0,0.00024729]
[1723595209156,0.065947,60633.0,60632.0,0.00024729]
[1723595209359,0.13172937,60633.0,60632.0,0.00024729]
[1723595209953,0.13172937,60633.0,60632.0,0.00724729]
[1723595210249,0.13172937,60633.0,60632.0,0.01224729]
[1723595210456,0.065947,60633.0,60632.0,0.01224729]
[1723595210758,0.13272937,60633.0,60632.0,0.00024729]
[1723595210952,0.13272937,60633.0,60632.0,0.00524729]
[1723595211266,0.066947,60633.0,60632.0,0.00524729]
[1723595212954,0.066947,60633.0,60632.0,0.00424729]
[1723595216468,0.07684059,60633.0,60632.0,0.00424729]
[1723595220758,0.01089359,60633.0,60632.0,0.00424729]
[1723595220965,0.01089359,60633.0,60632.0,1.42019529]
[1723595220966,0.001,60633.0,60632.0,1.42019529]
[1723595221360,0.001,60633.0,60632.0,0.52539529]
[1723595222162,0.001,60633.0,60632.0,1.42019529]
[1723595223469,0.001,60633.0,60632.0,1.02019529]
[1723595227374,0.001,60633.0,60632.0,1.38099529]
[1723595228967,0.001,60633.0,60632.0,1.43002726]
[1723595229372,0.001,60633.0,60632.0,1.38099529]
[1723595229571,0.001,60633.0,60632.0,0.60099529]
[1723595229963,0.001,60633.0,60632.0,0.43099529]
[1723595230165,0.13272937,60633.0,60632.0,0.00424729]
[1723595230473,0.066947,60633.0,60632.0,0.00424729]
[1723595231066,0.07715117,60633.0,60632.0,0.00424729]
[1723595232671,0.065956,60625.0,60624.0,0.09424362]
[1723595232976,0.426756,60625.0,60624.0,0.0452]
[1723595234076,0.426756,60625.0,60624.0,0.0592]
[1723595234277,0.427756,60625.0,60624.0,0.0592]
[1723595234980,0.427756,60625.0,60624.0,0.0652]
[1723595235772,0.427756,60625.0,60624.0,0.0592]
[1723595236486,0.427756,60625.0,60624.0,0.0512]
[1723595236684,0.4935639,60625.0,60624.0,0.0512]
[1723595236882,0.427756,60625.0,60624.0,0.0512]
[1723595240376,0.066956,60625.0,60624.0,0.2112]
[1723595240571,0.49354886,60625.0,60624.0,0.2112]
[1723595241484,0.50346529,60625.0,60624.0,0.2112]
[1723595242174,0.14266529,60625.0,60624.0,0.2112]
[1723595242383,0.50346529,60625.0,60624.0,0.2112]
[1723595242584,0.43767243,60625.0,60624.0,0.2112]
[1723595248483,0.001,60625.0,60624.0,0.277157]
[1723595250481,0.3618,60625.0,60624.0,0.277157]
[1723595251384,0.3618,60625.0,60624.0,0.071957]
[1723595252193,0.427756,60625.0,60624.0,0.071957]
[1723595253193,0.427756,60625.0,60624.0,0.006]
[1723595254290,0.06679286,60625.0,60624.0,0.592757]
[1723595254495,0.001,60625.0,60624.0,0.592757]
[1723595254697,0.00024729,60631.0,60630.0,0.06595]
[1723595254894,0.00024729,60631.0,60630.0,0.42675]
[1723595255199,0.00024729,60631.0,60630.0,0.51975]
[1723595256393,0.00024729,60631.0,60630.0,0.15895]
[1723595256982,0.00124729,60631.0,60630.0,0.15995]
[1723595260699,0.06719629,60631.0,60630.0,0.046]
[1723595262103,0.06719629,60631.0,60630.0,0.001]
[1723595262294,0.92277559,60631.0,60622.0,0.065958]
[1723595262492,0.065958,60623.0,60622.0,0.065958]
[1723595262793,0.065959,60622.0,60621.0,0.0476]
[1723595264299,0.066959,60622.0,60621.0,0.0576]
[1723595266302,0.066959,60622.0,60621.0,0.0606]
[1723595267502,0.001,60622.0,60621.0,0.12656]
[1723595269997,0.06685285,60622.0,60621.0,0.12656]
[1723595285506,0.001,60622.0,60621.0,0.12656]
[1723595286098,0.561839,60622.0,60621.0,0.013]
[1723595286300,0.065968,60614.0,60613.0,0.04904362]
[1723595286598,0.06597,60612.0,60611.0,0.0468]
[1723595287301,0.3608,60615.0,60614.0,0.065968]
[1723595287498,0.06588003,60615.0,60614.0,0.065968]
[1723595287705,0.06588003,60617.0,60616.0,0.065965]
[1723595288013,0.07594193,60618.0,60617.0,0.065964]
[1723595288604,0.0100619,60618.0,60617.0,0.065964]
[1723595288803,0.07594563,60618.0,60617.0,0.065964]
[1723595289008,0.0100619,60618.0,60617.0,0.065964]
[1723595289207,0.0100619,60618.0,60617.0,0.072964]
[1723595289908,0.00024729,60618.0,60617.0,0.528164]
[1723595290099,0.08234423,60620.0,60617.0,0.528164]
[1723595290100,0.06589293,60622.0,60617.0,0.8880131]
[1723595290304,0.06589293,60624.0,60619.0,0.0650131]
[1723595290507,0.3608,60630.0,60624.0,0.065957]
[1723595290508,0.06589293,60625.0,60624.0,0.065957]
[1723595290706,0.06589293,60625.0,60624.0,0.11508517]
[1723595291119,0.06589293,60626.0,60625.0,0.065956]
[1723595291311,0.06589293,60626.0,60625.0,0.115056]
[1723595291511,0.44314423,60630.0,60626.0,0.065954]
[1723595291815,0.06589096,60627.0,60626.0,0.11508217]
[1723595292013,0.14854052,60631.0,60626.0,0.065954]
[1723595292515,0.08234423,60630.0,60625.0,0.0491]
[1723595292716,0.3608,60626.0,60625.0,0.0491]
[1723595292902,0.38753004,60626.0,60625.0,0.0491]
[1723595294315,0.45348404,60626.0,60625.0,0.0541]
[1723595295106,0.426754,60626.0,60625.0,0.0541]
[1723595295313,0.428754,60626.0,60625.0,0.0541]
[1723595295715,0.45548448,60626.0,60625.0,0.0541]
[1723595295913,0.45548448,60626.0,60625.0,0.005]
[1723595297019,0.38953048,60626.0,60625.0,0.005]
[1723595297318,0.38953048,60626.0,60625.0,0.070956]
[1723595297529,0.44516801,60626.0,60625.0,0.070956]
[1723595298011,0.428754,60626.0,60625.0,0.005]
[1723595298211,0.45548447,60626.0,60625.0,0.005]
[1723595301825,0.45548364,60626.0,60625.0,0.005]
[1723595302121,0.45548384,60626.0,60625.0,0.005]
[1723595302518,0.51112546,60626.0,60625.0,0.005]
[1723595303921,0.428754,60626.0,60625.0,0.005]
[1723595304119,0.51112263,60626.0,60625.0,0.005]
[1723595305315,1.00596263,60626.0,60625.0,0.005]
[1723595305626,0.923594,60626.0,60625.0,0.005]
[1723595305816,0.95032344,60626.0,60625.0,0.005]
[1723595306219,1.04842081,60626.0,60625.0,0.005]
[1723595306520,1.04842081,60626.0,60618.0,0.06620929]
[1723595306521,0.98246681,60626.0,60618.0,0.06620929]
[1723595306711,0.065961,60620.0,60618.0,0.06620929]
[1723595307325,0.065961,60620.0,60618.0,0.00024729]
[1723595307326,0.065962,60619.0,60618.0,0.00024729]
[1723595307526,0.065969,60613.0,60612.0,0.10018746]
[1723595307824,0.065969,60613.0,60605.0,0.04912817]
[1723595307825,0.065976,60606.0,60605.0,0.04912817]
[1723595308013,0.065981,60602.0,60601.0,0.0491]
[1723595308523,0.13183873,60602.0,60601.0,0.0491]
[1723595308725,0.065981,60602.0,60601.0,0.0491]
[1723595309421,0.065981,60602.0,60601.0,0.115082]
[1723595309817,0.065981,60602.0,60601.0,0.129082]
[1723595310018,0.066981,60602.0,60601.0,0.129082]
[1723595314525,0.427781,60602.0,60601.0,0.0631]
[1723595314734,0.427781,60602.0,60601.0,0.014]
[1723595317429,0.426781,60602.0,60601.0,0.014]
[1723595317619,0.427781,60602.0,60601.0,0.004]
[1723595317818,0.427781,60602.0,60601.0,0.005]
[1723595321833,0.922821,60602.0,60601.0,0.005]
[1723595322827,0.427781,60602.0,60601.0,0.005]
[1723595323033,0.922821,60602.0,60601.0,0.005]
[1723595323530,0.427781,60602.0,60601.0,0.005]
[1723595324635,0.3618,60602.0,60601.0,0.070982]
[1723595324829,0.0002475,60608.0,60601.0,1.07004]
[1723595325029,0.0002475,60608.0,60607.0,0.2852]
[1723595325227,0.0002475,60608.0,60607.0,0.44351655]
[1723595326132,0.0002475,60608.0,60607.0,0.55819155]
[1723595326634,0.3608,60619.0,60616.0,0.065965]
[1723595327229,0.37094707,60619.0,60616.0,0.065965]
[1723595328324,0.37094707,60619.0,60616.0,0.070965]
[1723595329336,0.37094707,60619.0,60616.0,0.075965]
[1723595329337,0.37194707,60619.0,60616.0,0.075965]
[1723595329634,0.01114707,60619.0,60616.0,0.075965]
[1723595329944,0.01114707,60619.0,60616.0,0.074965]
[1723595332635,0.07711007,60619.0,60616.0,0.074965]
[1723595336539,0.065964,60617.0,60616.0,0.009]
[1723595337637,0.065964,60617.0,60616.0,0.005]
[1723595337838,0.065964,60617.0,60616.0,0.009]
[1723595338734,0.13171942,60617.0,60616.0,0.004]
[1723595338939,0.13171942,60617.0,60616.0,0.007]
[1723595339148,0.065964,60617.0,60616.0,0.007]
[1723595339445,0.13171902,60617.0,60616.0,0.007]
[1723595339839,0.13171902,60617.0,60616.0,0.004]
[1723595340146,0.13371902,60617.0,60616.0,0.005]
[1723595340741,0.067964,60617.0,60616.0,0.005]
[1723595341431,0.065966,60616.0,60611.0,0.0662175]
[1723595341631,0.3608,60613.0,60611.0,0.0662175]
[1723595342042,0.002,60617.0,60616.0,0.003]
[1723595342635,0.001,60613.0,60612.0,0.35117]
[1723595342835,0.001,60613.0,60612.0,0.51117]
[1723595343441,0.001,60613.0,60612.0,1.40613]
[1723595344249,0.07590482,60621.0,60616.0,0.065964]
[1723595344538,0.001,60617.0,60616.0,0.230964]
[1723595344933,0.07590482,60621.0,60617.0,0.065964]
[1723595345143,0.065961,60620.0,60617.0,0.215964]
[1723595345330,0.065961,60620.0,60618.0,0.0976]
[1723595345535,0.065961,60620.0,60618.0,0.2476]
[1723595345735,0.065961,60620.0,60619.0,0.0474]
[1723595347733,0.066961,60620.0,60619.0,0.0524]
[1723595347942,0.066961,60620.0,60619.0,0.0544]
[1723595349236,0.065961,60620.0,60619.0,0.0494]
[1723595349432,0.066961,60620.0,60619.0,0.0524]
[1723595349739,0.066961,60620.0,60619.0,0.0544]
[1723595351532,0.13271588,60620.0,60619.0,0.0544]
[1723595351737,0.13271588,60620.0,60619.0,0.007]
[1723595352442,0.065961,60620.0,60619.0,0.002]
[1723595352637,0.065962,60619.0,60618.0,0.0976]
[1723595352837,0.13178575,60619.0,60618.0,0.0976]
[1723595353034,0.06582375,60619.0,60618.0,0.323563]
[1723595353235,0.06682375,60620.0,60618.0,0.323563]
[1723595354139,0.06682375,60620.0,60618.0,0.325563]
[1723595354544,0.00994382,60621.0,60618.0,0.325563]
[1723595354847,0.00994382,60621.0,60619.0,0.005]
[1723595354848,0.001,60620.0,60619.0,0.005]
[1723595355844,0.001,60620.0,60618.0,0.170563]
[1723595356149,0.001,60620.0,60618.0,0.340563]
[1723595356343,0.001,60620.0,60619.0,0.005]
[1723595357243,0.066961,60620.0,60619.0,0.005]
[1723595358747,0.065962,60619.0,60618.0,0.006]
[1723595359245,0.065962,60619.0,60618.0,0.001]
[1723595359841,0.065964,60618.0,60615.0,0.40992817]
[1723595360040,0.06590967,60617.0,60615.0,0.40992817]
[1723595360647,0.06590967,60617.0,60615.0,0.04912817]
[1723595360953,0.06590967,60617.0,60615.0,0.40992817]
[1723595361448,0.13187367,60617.0,60615.0,0.40992817]
[1723595362248,0.13287367,60617.0,60615.0,0.41492817]
[1723595362647,0.13287367,60617.0,60615.0,0.005]
[1723595362648,0.1483573,60616.0,60615.0,0.005]
[1723595362949,0.19079644,60616.0,60615.0,0.005]
[1723595363342,0.19079644,60616.0,60615.0,0.008]
[1723595364046,0.19079644,60616.0,60615.0,0.005]
[1723595364347,0.19079644,60616.0,60615.0,0.006]
[1723595364746,0.09269907,60616.0,60615.0,0.006]
[1723595365051,0.09669907,60616.0,60615.0,0.005]
[1723595365550,0.06597,60612.0,60611.0,0.0002475]
[1723595366658,0.08235995,60614.0,60611.0,0.1502475]
[1723595366954,0.06687594,60612.0,60611.0,0.1512475]
[1723595367256,0.001,60612.0,60611.0,0.1512475]
[1723595367446,0.001,60612.0,60611.0,0.20041243]
[1723595367652,0.06697,60612.0,60611.0,0.0012475]
[1723595368050,0.06697,60612.0,60611.0,0.1712475]
[1723595368051,0.001,60612.0,60611.0,0.1712475]
[1723595368960,0.44315995,60616.0,60612.0,0.065969]
[1723595369152,0.001,60614.0,60612.0,0.065969]
[1723595369359,0.001,60614.0,60613.0,0.0465]
[1723595369659,0.44315995,60616.0,60613.0,0.0465]
[1723595370048,0.44315995,60616.0,60614.0,0.0943]
[1723595371055,0.3608,60616.0,60614.0,0.0943]
[1723595372552,0.3628,60616.0,60614.0,0.0943]
[1723595373346,0.3618,60616.0,60614.0,0.0943]
[1723595375660,0.001,60616.0,60614.0,0.0943]
[1723595379865,0.06688348,60616.0,60615.0,0.560886]
[1723595380052,0.06588348,60620.0,60615.0,1.31092]
[1723595380259,0.0002475,60624.0,60623.0,0.065958]
[1723595380459,0.0002475,60624.0,60623.0,0.881958]
[1723595380655,0.0002475,60624.0,60623.0,0.9469711]
[1723595380867,0.06588348,60631.0,60628.0,0.065951]
[1723595381058,0.00980534,60634.0,60623.0,0.816]
[1723595381059,0.06588348,60632.0,60629.0,0.57295]
[1723595381370,0.06588348,60633.0,60629.0,0.57295]
[1723595382275,0.06588348,60634.0,60629.0,0.507]
[1723595382463,0.06588348,60633.0,60629.0,0.507]
[1723595382662,0.07188348,60633.0,60629.0,0.508]
[1723595382966,0.08588348,60633.0,60629.0,0.508]
[1723595383164,0.15183048,60633.0,60629.0,0.508]
[1723595383360,0.13183048,60633.0,60629.0,0.508]
[1723595384469,0.065947,60633.0,60629.0,0.508]
[1723595385164,0.078947,60633.0,60629.0,0.508]
[1723595387672,0.08873333,60633.0,60629.0,0.508]
[1723595388760,0.02278633,60633.0,60629.0,0.508]
[1723595389870,0.02278633,60633.0,60629.0,0.573951]
[1723595394173,0.02278633,60633.0,60629.0,0.713951]
[1723595394376,0.013,60633.0,60632.0,0.065948]
[1723595394585,0.013,60633.0,60632.0,0.205948]
[1723595394876,0.00024687,60637.0,60636.0,0.065944]
[1723595395182,0.72835995,60653.0,60636.0,0.065944]
[1723595395183,0.06588348,60652.0,60636.0,0.90618746]
[1723595395474,0.3608,60653.0,60647.0,0.065931]
[1723595395672,0.3608,60653.0,60648.0,0.0945]
[1723595396376,0.009,60652.0,60648.0,0.0945]
[1723595397983,0.38460733,60653.0,60648.0,0.0945]
[1723595398576,0.00980733,60653.0,60649.0,0.3608]
[1723595398878,0.014,60652.0,60649.0,0.3608]
[1723595399282,0.065921,60657.0,60649.0,0.3608]
[1723595399582,0.3748,60653.0,60648.0,0.002]
[1723595400274,0.09809737,60650.0,60648.0,0.002]
[1723595400776,0.09809737,60650.0,60648.0,0.06793]
[1723595400972,0.3748,60653.0,60648.0,0.06793]
[1723595400973,0.02671754,60649.0,60648.0,0.06793]
[1723595401178,0.09809737,60651.0,60648.0,0.06793]
[1723595401389,0.09809737,60651.0,60649.0,0.001]
[1723595402370,0.12481491,60651.0,60649.0,0.001]
[1723595402571,0.02671754,60650.0,60649.0,0.001]
[1723595402773,0.12481491,60650.0,60649.0,0.001]
[1723595402984,0.12481491,60650.0,60648.0,0.001]
[1723595403376,0.014,60651.0,60648.0,0.001]
[1723595403377,0.19074391,60649.0,60648.0,0.001]
[1723595404386,0.19074391,60649.0,60645.0,0.0462]
[1723595404387,0.38702796,60649.0,60644.0,0.0002475]
[1723595404680,0.32109896,60648.0,60644.0,0.0002475]
[1723595404886,0.32109896,60647.0,60644.0,0.0002475]
[1723595405094,0.32109896,60646.0,60644.0,0.0002475]
[1723595405293,0.32109896,60645.0,60644.0,0.17]
[1723595405490,0.32109896,60645.0,60644.0,0.4552]
[1723595405792,0.32109896,60645.0,60644.0,0.522135]
[1723595406197,0.32109896,60645.0,60644.0,0.53022592]
[1723595406496,0.32109896,60645.0,60644.0,0.26637507]
[1723595406497,0.44420799,60645.0,60644.0,0.26637507]
[1723595406698,0.32109896,60645.0,60644.0,0.43637507]
[1723595407285,0.45820799,60645.0,60644.0,0.43637507]
[1723595407487,0.45820799,60645.0,60644.0,0.48397507]
[1723595407898,0.41370675,60645.0,60644.0,0.48397507]
[1723595408095,0.41570675,60645.0,60644.0,0.48397507]
[1723595408404,0.41570675,60645.0,60644.0,0.84477507]
[1723595409304,0.40170675,60645.0,60644.0,0.84477507]
[1723595409600,0.41270675,60645.0,60644.0,0.84477507]
[1723595410593,0.41170675,60645.0,60644.0,0.84477507]
[1723595410904,0.41170675,60645.0,60644.0,0.85463696]
[1723595412494,0.03871607,60645.0,60644.0,0.85463696]
[1723595413588,0.09852038,60647.0,60646.0,0.065933]
[1723595413795,0.09852038,60647.0,60646.0,0.235933]
[1723595415002,0.09952038,60647.0,60646.0,0.236933]
[1723595415198,0.13923641,60647.0,60646.0,0.237933]
[1723595415706,0.04071603,60647.0,60646.0,0.237933]
[1723595416599,0.04071603,60647.0,60646.0,0.002]
[1723595416805,0.014,60647.0,60646.0,0.002]
[1723595416991,0.07254683,60647.0,60646.0,0.002]
[1723595417198,0.13847883,60647.0,60646.0,0.002]
[1723595418399,0.25341928,60647.0,60646.0,0.002]
[1723595419299,0.25341928,60647.0,60646.0,0.00180001]
[1723595419898,0.13847883,60647.0,60646.0,0.00180001]
[1723595420208,0.13847883,60647.0,60640.0,0.10018746]
[1723595420209,0.065938,60641.0,60640.0,0.10018746]
[1723595420401,0.53221646,60641.0,60640.0,0.10018746]
[1723595420602,1.02693646,60641.0,60640.0,0.10018746]
[1723595421205,1.12363646,60641.0,60640.0,0.10018746]
[1723595421405,1.20808037,60641.0,60640.0,0.10018746]
[1723595421612,1.12330765,60641.0,60640.0,0.10118746]
[1723595422105,1.13630765,60641.0,60640.0,0.10218746]
[1723595422309,1.26766816,60641.0,60640.0,0.002]
[1723595423615,0.77294816,60641.0,60640.0,0.002]
[1723595423815,0.64158765,60641.0,60640.0,0.002]
[1723595424508,0.77294816,60641.0,60640.0,0.002]
[1723595424706,0.78273019,60641.0,60640.0,0.002]
[1723595425505,0.65136968,60641.0,60640.0,0.002]
[1723595425807,0.78273019,60641.0,60640.0,0.002]
[1723595426010,0.65138567,60641.0,60640.0,0.002]
[1723595427512,0.65138567,60641.0,60640.0,0.00175808]
[1723595427513,0.71536968,60641.0,60640.0,0.00175808]
[1723595427709,0.86334227,60641.0,60640.0,0.00175808]
[1723595429915,0.71536968,60641.0,60640.0,0.00175808]
[1723595430503,0.71530153,60641.0,60640.0,0.00175808]
[1723595431522,0.06594,60639.0,60627.0,0.43684994]
[1723595431814,0.11506038,60630.0,60627.0,0.3608]
[1723595432007,0.065956,60625.0,60623.0,0.0483]
[1723595432207,0.05856105,60625.0,60614.0,0.363]